[Event "Early-Titled-Tuesday-Blitz-January-23-2024"]
[Site "Chess.com"]
[Date "2024.01.23"]
[Round "7"]
[White "Zq1"]
[Black "Al_Shima"]
[Result "0-1"]
[WhiteElo "2511"]
[BlackElo "2278"]
[TimeControl "180+1"]
[EndTime "9:18:02 PST"]
[Termination "Al_Shima won on time"]

1. d4 {[%clk 0:03:00.9]} 1... Nf6 {[%clk 0:02:55.9]} 2. c4 {[%clk 0:03:00.7]}
2... e6 {[%clk 0:02:49.9]} 3. g3 {[%clk 0:02:57.8]} 3... d5 {[%clk 0:02:49.9]}
4. Bg2 {[%clk 0:02:57.6]} 4... dxc4 {[%clk 0:02:46.5]} 5. Nf3 {[%clk 0:02:55.8]}
5... Be7 {[%clk 0:02:46.4]} 6. O-O {[%clk 0:02:54.6]} 6... O-O {[%clk
0:02:46.6]} 7. Ne5 {[%clk 0:02:54.4]} 7... c5 {[%clk 0:02:44.3]} 8. dxc5 {[%clk
0:02:52.3]} 8... Qc7 {[%clk 0:02:43.2]} 9. Nxc4 {[%clk 0:02:48.4]} 9... Bxc5
{[%clk 0:02:40]} 10. Bf4 {[%clk 0:02:40]} 10... Bxf2+ {[%clk 0:02:21.5]} 11.
Rxf2 {[%clk 0:02:40.1]} 11... Qxc4 {[%clk 0:02:22.4]} 12. Na3 {[%clk 0:02:35.7]}
12... Qb4 {[%clk 0:02:01.3]} 13. Bd6 {[%clk 0:02:27.9]} 13... Qb6 {[%clk
0:02:01.4]} 14. Nc4 {[%clk 0:02:19.3]} 14... Qd8 {[%clk 0:01:51.2]} 15. Bxf8
{[%clk 0:02:15]} 15... Qxf8 {[%clk 0:01:52.1]} 16. Qd6 {[%clk 0:02:11.1]} 16...
Qe8 {[%clk 0:01:42.5]} 17. Rd1 {[%clk 0:01:58.7]} 17... Nc6 {[%clk 0:01:41.3]}
18. Bxc6 {[%clk 0:01:53.1]} 18... bxc6 {[%clk 0:01:42.2]} 19. Qd8 {[%clk
0:01:44.5]} 19... Ba6 {[%clk 0:01:40.7]} 20. Qxe8+ {[%clk 0:01:41.2]} 20... Rxe8
{[%clk 0:01:41.6]} 21. b3 {[%clk 0:01:30.1]} 21... Bxc4 {[%clk 0:01:26.9]} 22.
bxc4 {[%clk 0:01:29.3]} 22... Rb8 {[%clk 0:01:27.4]} 23. Rf3 {[%clk 0:01:25]}
23... h6 {[%clk 0:01:10.7]} 24. Rb3 {[%clk 0:01:24]} 24... Ra8 {[%clk
0:00:31.8]} 25. Kf2 {[%clk 0:01:18.4]} 25... g6 {[%clk 0:00:27.1]} 26. Kf3
{[%clk 0:01:18.1]} 26... Kg7 {[%clk 0:00:27.2]} 27. Rd6 {[%clk 0:01:08.7]} 27...
a5 {[%clk 0:00:18.6]} 28. Rxc6 {[%clk 0:01:05.8]} 28... Nd7 {[%clk 0:00:18.3]}
29. Rc7 {[%clk 0:00:53.4]} 29... Ne5+ {[%clk 0:00:17.2]} 30. Ke4 {[%clk
0:00:44.4]} 30... Kf6 {[%clk 0:00:17.3]} 31. Rb5 {[%clk 0:00:34.2]} 31... Ng4
{[%clk 0:00:10.4]} 32. h4 {[%clk 0:00:24.9]} 32... h5 {[%clk 0:00:07.7]} 33. c5
{[%clk 0:00:20.4]} 33... a4 {[%clk 0:00:07]} 34. a3 {[%clk 0:00:19.2]} 34... Rd8
{[%clk 0:00:05.2]} 35. c6 {[%clk 0:00:16.9]} 35... Rd2 {[%clk 0:00:05.4]} 36.
Kf3 {[%clk 0:00:11.3]} 36... Ra2 {[%clk 0:00:05.2]} 37. Ra7 {[%clk 0:00:07.7]}
37... Ne5+ {[%clk 0:00:03.2]} 38. Rxe5 {[%clk 0:00:02.9]} 38... Kxe5 {[%clk
0:00:04.1]} 39. Rxa4 {[%clk 0:00:02.5]} 39... Rc2 {[%clk 0:00:03.6]} 40. Ra6
{[%clk 0:00:02.8]} 40... Rc3+ {[%clk 0:00:02.5]} 41. e3 {[%clk 0:00:02.9]} 41...
f5 {[%clk 0:00:02.1]} 42. a4 {[%clk 0:00:02.3]} 42... Kd6 {[%clk 0:00:02.6]} 43.
a5 {[%clk 0:00:02.5]} 43... Rxc6 {[%clk 0:00:02.3]} 0-1

[Event "Early-Titled-Tuesday-Blitz-January-23-2024"]
[Site "Chess.com"]
[Date "2024.01.23"]
[Round "7"]
[White "KnobbedHornbill"]
[Black "CSB7"]
[Result "0-1"]
[WhiteElo "2581"]
[BlackElo "2737"]
[TimeControl "180+1"]
[EndTime "9:18:03 PST"]
[Termination "CSB7 won by resignation"]

1. d4 {[%clk 0:03:00.9]} 1... Nf6 {[%clk 0:03:00.4]} 2. c4 {[%clk 0:03:01.1]}
2... a6 {[%clk 0:03:00.7]} 3. g3 {[%clk 0:03:00.3]} 3... e6 {[%clk 0:02:59.4]}
4. Bg2 {[%clk 0:03:00.5]} 4... d5 {[%clk 0:02:58]} 5. Nf3 {[%clk 0:03:00.3]}
5... dxc4 {[%clk 0:02:57.4]} 6. O-O {[%clk 0:03:00.2]} 6... b5 {[%clk
0:02:55.2]} 7. Ne5 {[%clk 0:03:00]} 7... Nd5 {[%clk 0:02:54.2]} 8. a4 {[%clk
0:03:00.3]} 8... Bb7 {[%clk 0:02:52]} 9. e4 {[%clk 0:02:59.5]} 9... Nf6 {[%clk
0:02:51.1]} 10. d5 {[%clk 0:02:57.5]} 10... Bd6 {[%clk 0:02:28.1]} 11. Nxf7
{[%clk 0:01:58.3]} 11... Kxf7 {[%clk 0:02:29]} 12. dxe6+ {[%clk 0:01:58.4]}
12... Kxe6 {[%clk 0:02:10.9]} 13. Qe2 {[%clk 0:01:53.7]} 13... Kf7 {[%clk
0:01:08.6]} 14. e5 {[%clk 0:01:53.1]} 14... Bxg2 {[%clk 0:01:07.3]} 15. Kxg2
{[%clk 0:01:53.6]} 15... Bxe5 {[%clk 0:00:44.9]} 16. Qxe5 {[%clk 0:01:54.5]}
16... Nc6 {[%clk 0:00:45.1]} 17. Qf4 {[%clk 0:01:39.1]} 17... Qd6 {[%clk
0:00:28.1]} 18. axb5 {[%clk 0:01:20.4]} 18... axb5 {[%clk 0:00:25.6]} 19. Rxa8
{[%clk 0:01:19.4]} 19... Rxa8 {[%clk 0:00:26.5]} 20. Nc3 {[%clk 0:01:15.6]}
20... Qxf4 {[%clk 0:00:26]} 21. Bxf4 {[%clk 0:01:14.5]} 21... b4 {[%clk
0:00:26.6]} 22. Nb5 {[%clk 0:01:11.9]} 22... Ra2 {[%clk 0:00:11.4]} 23. Rc1
{[%clk 0:01:11.8]} 23... Nd5 {[%clk 0:00:02.7]} 24. Rxc4 {[%clk 0:01:08.4]}
24... Na5 {[%clk 0:00:03.3]} 25. Rd4 {[%clk 0:01:04.7]} 25... c6 {[%clk
0:00:02.8]} 26. Nc7 {[%clk 0:00:57.7]} 26... Nxc7 {[%clk 0:00:01.8]} 27. Bxc7
{[%clk 0:00:58.6]} 27... c5 {[%clk 0:00:02.1]} 28. Rd7+ {[%clk 0:00:55.5]} 28...
Ke6 {[%clk 0:00:01.8]} 29. Rxg7 {[%clk 0:00:54.8]} 29... Nc4 {[%clk 0:00:02]}
30. Rg5 {[%clk 0:00:42.6]} 30... Kd7 {[%clk 0:00:01.3]} 31. Rxc5 {[%clk
0:00:42.2]} 31... Nxb2 {[%clk 0:00:02]} 32. Rc2 {[%clk 0:00:30]} 32... b3 {[%clk
0:00:01.8]} 33. Rc3 {[%clk 0:00:29.7]} 33... Na4 {[%clk 0:00:01.3]} 34. Rxb3
{[%clk 0:00:29.7]} 34... Kxc7 {[%clk 0:00:02.2]} 35. Rf3 {[%clk 0:00:29.2]}
35... Nb6 {[%clk 0:00:01.9]} 36. Rf7+ {[%clk 0:00:29.4]} 36... Kd6 {[%clk
0:00:02.8]} 37. Rxh7 {[%clk 0:00:30.1]} 37... Nd5 {[%clk 0:00:03.5]} 38. Rh6+
{[%clk 0:00:31]} 38... Ke5 {[%clk 0:00:03.1]} 39. h4 {[%clk 0:00:31.9]} 39...
Ne3+ {[%clk 0:00:03.1]} 40. Kf3 {[%clk 0:00:31.5]} 40... Rxf2+ {[%clk
0:00:03.2]} 41. Kxe3 {[%clk 0:00:30]} 41... Ra2 {[%clk 0:00:02]} 42. Rh5+ {[%clk
0:00:30.6]} 42... Kf6 {[%clk 0:00:01.7]} 43. Kf4 {[%clk 0:00:31.5]} 43... Ra4+
{[%clk 0:00:01.8]} 44. Kf3 {[%clk 0:00:31.5]} 44... Ra2 {[%clk 0:00:02.3]} 45.
Kg4 {[%clk 0:00:32.4]} 45... Ra3 {[%clk 0:00:02.1]} 46. Kh3 {[%clk 0:00:32.1]}
46... Rb3 {[%clk 0:00:02.1]} 47. Rb5 {[%clk 0:00:32.9]} 47... Rxb5 {[%clk
0:00:02]} 48. Kg4 {[%clk 0:00:32.3]} 48... Kg6 {[%clk 0:00:02.9]} 49. Kf4 {[%clk
0:00:32.1]} 49... Kh6 {[%clk 0:00:03.2]} 50. Kg4 {[%clk 0:00:32.6]} 50... Rb4+
{[%clk 0:00:03.7]} 51. Kf5 {[%clk 0:00:32.7]} 51... Kh5 {[%clk 0:00:04.6]} 52.
Ke5 {[%clk 0:00:30.6]} 52... Rg4 {[%clk 0:00:05.5]} 53. Kf5 {[%clk 0:00:30.9]}
53... Rxg3 {[%clk 0:00:05.8]} 54. Kf6 {[%clk 0:00:31.8]} 54... Rg4 {[%clk
0:00:06.7]} 0-1

[Event "Early-Titled-Tuesday-Blitz-January-23-2024"]
[Site "Chess.com"]
[Date "2024.01.23"]
[Round "7"]
[White "Felix-Rose"]
[Black "Shodikulov_Jamshid1990"]
[Result "1-0"]
[WhiteElo "2311"]
[BlackElo "2465"]
[TimeControl "180+1"]
[EndTime "9:18:05 PST"]
[Termination "Felix-Rose won by checkmate"]

1. d4 {[%clk 0:03:00]} 1... Nf6 {[%clk 0:02:59.1]} 2. Bf4 {[%clk 0:02:57.2]}
2... c5 {[%clk 0:02:58.1]} 3. e3 {[%clk 0:02:53.9]} 3... Nc6 {[%clk 0:02:57.5]}
4. c3 {[%clk 0:02:48.8]} 4... d5 {[%clk 0:02:55.5]} 5. Nd2 {[%clk 0:02:44]} 5...
g6 {[%clk 0:02:49.7]} 6. h3 {[%clk 0:02:39.4]} 6... Bg7 {[%clk 0:02:49.7]} 7.
Bd3 {[%clk 0:02:38]} 7... O-O {[%clk 0:02:50]} 8. Ngf3 {[%clk 0:02:38]} 8... Qb6
{[%clk 0:02:42.1]} 9. Rb1 {[%clk 0:02:33.2]} 9... cxd4 {[%clk 0:02:38.3]} 10.
exd4 {[%clk 0:02:32.7]} 10... a5 {[%clk 0:02:19.5]} 11. O-O {[%clk 0:02:32.1]}
11... a4 {[%clk 0:02:19.6]} 12. Re1 {[%clk 0:02:29.3]} 12... Bd7 {[%clk
0:02:00.9]} 13. Ne5 {[%clk 0:02:16.7]} 13... Nxe5 {[%clk 0:01:53.3]} 14. Bxe5
{[%clk 0:02:16.8]} 14... Bb5 {[%clk 0:01:53]} 15. Bc2 {[%clk 0:02:10.9]} 15...
Rfe8 {[%clk 0:01:47.5]} 16. Re3 {[%clk 0:01:47.8]} 16... Bh6 {[%clk 0:01:41.2]}
17. Rf3 {[%clk 0:01:38.4]} 17... Nd7 {[%clk 0:01:39.3]} 18. Bf4 {[%clk 0:01:34]}
18... Bg7 {[%clk 0:01:38.7]} 19. Re3 {[%clk 0:01:29.7]} 19... e6 {[%clk
0:01:35.1]} 20. Nf3 {[%clk 0:01:27.4]} 20... Rec8 {[%clk 0:01:23.8]} 21. a3
{[%clk 0:01:24.4]} 21... Qd8 {[%clk 0:01:06]} 22. Bd3 {[%clk 0:01:13.1]} 22...
Bxd3 {[%clk 0:01:05.5]} 23. Qxd3 {[%clk 0:01:14]} 23... Qb6 {[%clk 0:01:03.6]}
24. Re2 {[%clk 0:01:12]} 24... Ra5 {[%clk 0:00:55.9]} 25. Rd1 {[%clk 0:01:04.5]}
25... Rb5 {[%clk 0:00:55.6]} 26. Rdd2 {[%clk 0:01:04.5]} 26... Ra5 {[%clk
0:00:53]} 27. Qe3 {[%clk 0:01:01.3]} 27... Rb5 {[%clk 0:00:50]} 28. Bh6 {[%clk
0:01:00.6]} 28... Bh8 {[%clk 0:00:49.1]} 29. Ng5 {[%clk 0:00:59.1]} 29... Rb3
{[%clk 0:00:45.3]} 30. Qf3 {[%clk 0:00:56]} 30... Nf6 {[%clk 0:00:43.8]} 31. g3
{[%clk 0:00:48]} 31... Qd6 {[%clk 0:00:36.6]} 32. Kg2 {[%clk 0:00:47.6]} 32...
Bg7 {[%clk 0:00:35.9]} 33. Bxg7 {[%clk 0:00:37.4]} 33... Kxg7 {[%clk 0:00:36.8]}
34. Rc2 {[%clk 0:00:30.8]} 34... h6 {[%clk 0:00:36.3]} 35. h4 {[%clk 0:00:19.3]}
35... hxg5 {[%clk 0:00:36.4]} 36. hxg5 {[%clk 0:00:19.9]} 36... Ne4 {[%clk
0:00:36.6]} 37. Qg4 {[%clk 0:00:19.7]} 37... Qe7 {[%clk 0:00:34.3]} 38. f4
{[%clk 0:00:15.4]} 38... Rh8 {[%clk 0:00:31.4]} 39. Kf3 {[%clk 0:00:15.7]} 39...
Rh1 {[%clk 0:00:29.9]} 40. Rh2 {[%clk 0:00:15.2]} 40... Rf1+ {[%clk 0:00:23.8]}
41. Kg2 {[%clk 0:00:15]} 41... Rb1 {[%clk 0:00:17.4]} 42. Qh3 {[%clk 0:00:14.5]}
42... Qf8 {[%clk 0:00:04.1]} 43. Qh7# {[%clk 0:00:13.9]} 1-0

[Event "Early-Titled-Tuesday-Blitz-January-23-2024"]
[Site "Chess.com"]
[Date "2024.01.23"]
[Round "7"]
[White "GeorgiosSouleidis"]
[Black "soloderisas"]
[Result "0-1"]
[WhiteElo "2634"]
[BlackElo "2485"]
[TimeControl "180+1"]
[EndTime "9:18:06 PST"]
[Termination "soloderisas won on time"]

1. e4 {[%clk 0:03:00.9]} 1... d6 {[%clk 0:02:59.5]} 2. d4 {[%clk 0:03:01]} 2...
Nf6 {[%clk 0:02:59.5]} 3. Nc3 {[%clk 0:03:01.7]} 3... e5 {[%clk 0:03:00]} 4. Nf3
{[%clk 0:03:01.6]} 4... exd4 {[%clk 0:02:59.6]} 5. Nxd4 {[%clk 0:03:02.5]} 5...
Be7 {[%clk 0:02:59.8]} 6. g3 {[%clk 0:03:02.9]} 6... O-O {[%clk 0:02:57.5]} 7.
Bg2 {[%clk 0:03:03.4]} 7... Re8 {[%clk 0:02:53.5]} 8. O-O {[%clk 0:03:03.6]}
8... c6 {[%clk 0:02:49.3]} 9. a4 {[%clk 0:03:03.1]} 9... Nbd7 {[%clk 0:02:47.7]}
10. h3 {[%clk 0:03:03]} 10... a5 {[%clk 0:02:47.7]} 11. Re1 {[%clk 0:03:03.3]}
11... Nc5 {[%clk 0:02:47.8]} 12. b3 {[%clk 0:03:03.5]} 12... Bd7 {[%clk
0:02:46]} 13. Bb2 {[%clk 0:03:03.7]} 13... Qc7 {[%clk 0:02:43.5]} 14. Qf3 {[%clk
0:02:56.8]} 14... h6 {[%clk 0:02:39.9]} 15. Rad1 {[%clk 0:02:56.3]} 15... Nh7
{[%clk 0:02:39.8]} 16. h4 {[%clk 0:02:42.4]} 16... Nf6 {[%clk 0:02:37.8]} 17.
Nf5 {[%clk 0:02:39.1]} 17... Bxf5 {[%clk 0:02:30.3]} 18. Qxf5 {[%clk 0:02:39.1]}
18... Qc8 {[%clk 0:02:22.9]} 19. Qf3 {[%clk 0:02:13]} 19... Qg4 {[%clk
0:02:23.1]} 20. Qxg4 {[%clk 0:01:51]} 20... Nxg4 {[%clk 0:02:22.3]} 21. Ne2
{[%clk 0:01:41.7]} 21... Rad8 {[%clk 0:02:15.7]} 22. Bh3 {[%clk 0:01:26.5]}
22... Bf6 {[%clk 0:02:08.8]} 23. Ba3 {[%clk 0:00:50.2]} 23... Ne5 {[%clk
0:02:02.7]} 24. Bg2 {[%clk 0:00:46.2]} 24... Ng4 {[%clk 0:01:48.2]} 25. Nf4
{[%clk 0:00:46.4]} 25... Be5 {[%clk 0:01:41.4]} 26. Nd3 {[%clk 0:00:43]} 26...
Bd4 {[%clk 0:01:32.8]} 27. Re2 {[%clk 0:00:38.9]} 27... f5 {[%clk 0:01:18.1]}
28. Nxc5 {[%clk 0:00:31.5]} 28... dxc5 {[%clk 0:01:17.8]} 29. Rde1 {[%clk
0:00:20]} 29... fxe4 {[%clk 0:01:14.5]} 30. Bxe4 {[%clk 0:00:20.5]} 30... Rxe4
{[%clk 0:00:57.1]} 31. Rxe4 {[%clk 0:00:19.7]} 31... Bxf2+ {[%clk 0:00:57.4]}
32. Kf1 {[%clk 0:00:16.6]} 32... Bxe1 {[%clk 0:00:57.6]} 33. Rxg4 {[%clk
0:00:08]} 33... Rd1 {[%clk 0:00:51.9]} 34. Ke2 {[%clk 0:00:07.3]} 34... Rb1
{[%clk 0:00:37.3]} 35. Bxc5 {[%clk 0:00:06.5]} 35... Bc3 {[%clk 0:00:34.4]} 36.
Kd3 {[%clk 0:00:06.3]} 36... Bf6 {[%clk 0:00:32.7]} 37. h5 {[%clk 0:00:06.6]}
37... Kf7 {[%clk 0:00:32.5]} 38. Ke2 {[%clk 0:00:05.7]} 38... Rc1 {[%clk
0:00:31.6]} 39. Kd2 {[%clk 0:00:05.1]} 39... Rh1 {[%clk 0:00:29.8]} 40. Be3
{[%clk 0:00:04.1]} 40... Rxh5 {[%clk 0:00:28.4]} 41. Rc4 {[%clk 0:00:03]} 41...
Rd5+ {[%clk 0:00:26.3]} 42. Ke2 {[%clk 0:00:03.3]} 42... Ke6 {[%clk 0:00:26.6]}
43. g4 {[%clk 0:00:03.5]} 43... Re5 {[%clk 0:00:25.2]} 44. Kf3 {[%clk
0:00:03.8]} 44... Bg5 {[%clk 0:00:24.8]} 45. Bb6 {[%clk 0:00:02.3]} 45... Rd5
{[%clk 0:00:19.1]} 46. Bd4 {[%clk 0:00:01.7]} 46... Kd6 {[%clk 0:00:18.6]} 47.
Bxg7 {[%clk 0:00:01.3]} 47... b5 {[%clk 0:00:18]} 48. axb5 {[%clk 0:00:01.3]}
48... cxb5 {[%clk 0:00:18.9]} 49. Rd4 {[%clk 0:00:01.5]} 49... a4 {[%clk
0:00:18.4]} 0-1

[Event "Early-Titled-Tuesday-Blitz-January-23-2024"]
[Site "Chess.com"]
[Date "2024.01.23"]
[Round "7"]
[White "TheoSlade"]
[Black "viktorskliarov"]
[Result "0-1"]
[WhiteElo "2464"]
[BlackElo "2666"]
[TimeControl "180+1"]
[EndTime "9:18:08 PST"]
[Termination "viktorskliarov won by resignation"]

1. d4 {[%clk 0:03:00.9]} 1... Nf6 {[%clk 0:02:46.5]} 2. c4 {[%clk 0:03:01.1]}
2... e6 {[%clk 0:02:28]} 3. g3 {[%clk 0:03:01.6]} 3... c5 {[%clk 0:02:22.9]} 4.
d5 {[%clk 0:03:01.6]} 4... exd5 {[%clk 0:02:22.8]} 5. cxd5 {[%clk 0:03:02.5]}
5... d6 {[%clk 0:02:23.5]} 6. Nc3 {[%clk 0:03:03.2]} 6... g6 {[%clk 0:02:23.5]}
7. Bg2 {[%clk 0:03:03.9]} 7... Bg7 {[%clk 0:02:23.9]} 8. Nf3 {[%clk 0:03:04.6]}
8... O-O {[%clk 0:02:24.4]} 9. O-O {[%clk 0:03:05.2]} 9... Re8 {[%clk
0:02:24.8]} 10. Bf4 {[%clk 0:03:05.5]} 10... Ne4 {[%clk 0:02:24]} 11. Nxe4
{[%clk 0:03:05.4]} 11... Rxe4 {[%clk 0:02:24.9]} 12. Nd2 {[%clk 0:03:05.7]}
12... Rxf4 {[%clk 0:02:22.5]} 13. gxf4 {[%clk 0:03:06.1]} 13... Bxb2 {[%clk
0:02:23.2]} 14. Rb1 {[%clk 0:03:04.8]} 14... Bg7 {[%clk 0:02:23.7]} 15. Nc4
{[%clk 0:02:54.9]} 15... b6 {[%clk 0:02:16.5]} 16. e3 {[%clk 0:02:50.4]} 16...
Ba6 {[%clk 0:02:05.2]} 17. Qc2 {[%clk 0:02:42.9]} 17... b5 {[%clk 0:01:46.3]}
18. Nd2 {[%clk 0:02:40.2]} 18... Nd7 {[%clk 0:01:38.9]} 19. Rfe1 {[%clk
0:02:35.1]} 19... c4 {[%clk 0:01:16.9]} 20. a4 {[%clk 0:02:29.9]} 20... c3
{[%clk 0:01:16.2]} 21. Ne4 {[%clk 0:02:27.7]} 21... bxa4 {[%clk 0:00:45.9]} 22.
Qxa4 {[%clk 0:02:12.6]} 22... Bd3 {[%clk 0:00:44.5]} 23. Rbc1 {[%clk 0:02:08.3]}
23... Bxe4 {[%clk 0:00:41.6]} 24. Bxe4 {[%clk 0:02:07.1]} 24... Nc5 {[%clk
0:00:41.7]} 25. Qc2 {[%clk 0:02:05.1]} 25... Rb8 {[%clk 0:00:36.3]} 26. Rb1
{[%clk 0:02:02.3]} 26... Rb2 {[%clk 0:00:34.8]} 27. Rxb2 {[%clk 0:02:00.6]}
27... cxb2 {[%clk 0:00:35.7]} 28. Rb1 {[%clk 0:01:56.2]} 28... a5 {[%clk
0:00:33.5]} 29. Bf3 {[%clk 0:01:50.8]} 29... Qb6 {[%clk 0:00:32.6]} 30. e4
{[%clk 0:01:41.9]} 30... a4 {[%clk 0:00:27]} 31. Be2 {[%clk 0:01:25.6]} 31... a3
{[%clk 0:00:23.9]} 32. Bc4 {[%clk 0:01:26]} 32... Qb4 {[%clk 0:00:18.2]} 33. f3
{[%clk 0:01:16.3]} 33... h5 {[%clk 0:00:17.5]} 34. Kg2 {[%clk 0:01:10.8]} 34...
Na4 {[%clk 0:00:16.6]} 35. e5 {[%clk 0:00:44.1]} 35... Nc3 {[%clk 0:00:11.6]}
36. e6 {[%clk 0:00:14.1]} 36... Qxc4 {[%clk 0:00:11.1]} 37. e7 {[%clk
0:00:12.9]} 37... Qc8 {[%clk 0:00:09.7]} 38. Re1 {[%clk 0:00:10.8]} 38... Qe8
{[%clk 0:00:09.2]} 39. f5 {[%clk 0:00:08.1]} 39... b1=Q {[%clk 0:00:09.2]} 40.
Rxb1 {[%clk 0:00:07.9]} 40... Nxb1 {[%clk 0:00:09.7]} 41. Qxb1 {[%clk
0:00:08.3]} 41... Qxe7 {[%clk 0:00:10.2]} 42. fxg6 {[%clk 0:00:07.5]} 42... Qg5+
{[%clk 0:00:08.7]} 43. Kh1 {[%clk 0:00:08.1]} 43... Qxg6 {[%clk 0:00:08]} 44.
Qb3 {[%clk 0:00:06.5]} 44... Bd4 {[%clk 0:00:06.7]} 45. Qd1 {[%clk 0:00:03.6]}
45... Qg1+ {[%clk 0:00:06.6]} 46. Qxg1+ {[%clk 0:00:03.6]} 46... Bxg1 {[%clk
0:00:07.5]} 47. Kxg1 {[%clk 0:00:04.1]} 47... a2 {[%clk 0:00:08.4]} 0-1

[Event "Early-Titled-Tuesday-Blitz-January-23-2024"]
[Site "Chess.com"]
[Date "2024.01.23"]
[Round "7"]
[White "Matols"]
[Black "Kamilek84"]
[Result "0-1"]
[WhiteElo "2372"]
[BlackElo "2687"]
[TimeControl "180+1"]
[EndTime "9:18:13 PST"]
[Termination "Kamilek84 won on time"]

1. d4 {[%clk 0:03:00.9]} 1... e6 {[%clk 0:02:56.7]} 2. c4 {[%clk 0:03:00.9]}
2... Bb4+ {[%clk 0:02:55.9]} 3. Bd2 {[%clk 0:03:00.3]} 3... Bxd2+ {[%clk
0:02:54.1]} 4. Qxd2 {[%clk 0:02:59.9]} 4... Nf6 {[%clk 0:02:53]} 5. Nc3 {[%clk
0:02:58.6]} 5... d5 {[%clk 0:02:52.6]} 6. e3 {[%clk 0:02:43.6]} 6... O-O {[%clk
0:02:51.4]} 7. Nf3 {[%clk 0:02:43.1]} 7... a6 {[%clk 0:02:38.8]} 8. cxd5 {[%clk
0:02:41.4]} 8... exd5 {[%clk 0:02:38.5]} 9. Bd3 {[%clk 0:02:41.2]} 9... Be6
{[%clk 0:02:35.7]} 10. O-O {[%clk 0:02:40.3]} 10... Nbd7 {[%clk 0:02:35.7]} 11.
Rfc1 {[%clk 0:02:34.5]} 11... Qe7 {[%clk 0:02:30.6]} 12. h3 {[%clk 0:02:15.3]}
12... a5 {[%clk 0:02:25.3]} 13. Nb5 {[%clk 0:02:03.9]} 13... c6 {[%clk
0:02:22.7]} 14. Nc7 {[%clk 0:02:02.9]} 14... Ra7 {[%clk 0:02:13]} 15. Nxe6
{[%clk 0:02:02.2]} 15... fxe6 {[%clk 0:02:12.9]} 16. Ne5 {[%clk 0:01:57.3]}
16... Nxe5 {[%clk 0:02:10.2]} 17. dxe5 {[%clk 0:01:58.2]} 17... Nd7 {[%clk
0:02:09.5]} 18. f4 {[%clk 0:01:57.8]} 18... Raa8 {[%clk 0:02:06.6]} 19. Qc2
{[%clk 0:01:51.8]} 19... h6 {[%clk 0:02:03.2]} 20. Qe2 {[%clk 0:01:49.8]} 20...
Qh4 {[%clk 0:01:43.3]} 21. Bb1 {[%clk 0:01:15.1]} 21... Rfd8 {[%clk 0:01:42.3]}
22. Qd3 {[%clk 0:01:12]} 22... Nf8 {[%clk 0:01:42.1]} 23. Rf1 {[%clk 0:01:04.8]}
23... c5 {[%clk 0:01:25.4]} 24. Bc2 {[%clk 0:00:57.1]} 24... c4 {[%clk
0:01:16.3]} 25. Qd4 {[%clk 0:00:53.1]} 25... Rac8 {[%clk 0:01:14.5]} 26. Qb6
{[%clk 0:00:43.3]} 26... Qe7 {[%clk 0:01:02]} 27. Qxa5 {[%clk 0:00:35.9]} 27...
Rc5 {[%clk 0:01:00.5]} 28. Qd2 {[%clk 0:00:32.6]} 28... Qc7 {[%clk 0:00:55]} 29.
Rac1 {[%clk 0:00:23.4]} 29... b5 {[%clk 0:00:54.2]} 30. Bb1 {[%clk 0:00:18.7]}
30... Qb6 {[%clk 0:00:51.1]} 31. Kh1 {[%clk 0:00:17.8]} 31... Rcc8 {[%clk
0:00:50]} 32. Rf3 {[%clk 0:00:17.7]} 32... d4 {[%clk 0:00:46.8]} 33. exd4 {[%clk
0:00:17.2]} 33... Rxd4 {[%clk 0:00:47]} 34. Qc2 {[%clk 0:00:17.3]} 34... Rcd8
{[%clk 0:00:46.6]} 35. f5 {[%clk 0:00:16.6]} 35... Rd2 {[%clk 0:00:46.2]} 36.
Qe4 {[%clk 0:00:16.1]} 36... Rd1+ {[%clk 0:00:45.6]} 37. Rf1 {[%clk 0:00:14.4]}
37... Rxc1 {[%clk 0:00:30.3]} 38. Rxc1 {[%clk 0:00:13.7]} 38... Qf2 {[%clk
0:00:30.3]} 39. fxe6 {[%clk 0:00:11.7]} 39... Re8 {[%clk 0:00:30.7]} 40. Qd5
{[%clk 0:00:09.1]} 40... Re7 {[%clk 0:00:27.6]} 41. Rd1 {[%clk 0:00:08.1]} 41...
Qxb2 {[%clk 0:00:24.4]} 42. Bf5 {[%clk 0:00:06.1]} 42... Qa3 {[%clk 0:00:16.6]}
43. Qd8 {[%clk 0:00:05.9]} 43... Qa7 {[%clk 0:00:14.9]} 44. Rd7 {[%clk
0:00:01.5]} 44... Qf2 {[%clk 0:00:04.1]} 0-1